bitfinex/quotes_SOLUSD_20230702
["timestamp","ask_amount","ask_price","bid_price","bid_amount"]
[1688256953934,62.79138627,18.709,18.688,22.634]
[1688256960332,62.79138627,18.709,18.682,10.83719922]
[1688256960940,62.79138627,18.709,18.683,22.639]
[1688256961236,324.5,18.708,18.675,58.311]
[1688256961410,55.0,18.707,18.681,22.642]
[1688256961725,62.79138627,18.707,18.685,22.637]
[1688256965327,62.79138627,18.707,18.681,22.642]
[1688256965328,16.9,18.7,18.681,22.642]
[1688256965525,55.0,18.699,18.682,20.0]
[1688256965731,62.79138627,18.699,18.682,20.0]
[1688256966533,62.79138627,18.699,18.679,22.645]
[1688256966534,62.79138627,18.699,18.68,20.0]
[1688256966930,85.43638627,18.699,18.68,20.0]
[1688256967635,85.43638627,18.699,18.68,42.644]
[1688256968635,30.43638627,18.699,18.68,42.644]
[1688256968937,22.645,18.699,18.68,100.941]
[1688256969127,22.645,18.699,18.68,42.644]
[1688256969328,7.79138627,18.698,18.68,42.644]
[1688256970032,55.0,18.697,18.68,42.644]
[1688256970413,7.79138627,18.696,18.68,42.644]
[1688256970616,55.0,18.695,18.68,42.644]
[1688256971322,152.424,18.695,18.68,42.644]
[1688256972451,152.424,18.695,18.672,58.319]
[1688256972452,160.21538627,18.695,18.672,58.319]
[1688256972642,484.71538627,18.695,18.672,58.319]
[1688256972829,7.79138627,18.694,18.672,58.319]
[1688256973133,55.0,18.693,18.676,22.649]
[1688256973339,55.0,18.693,18.668,58.332]
[1688256973340,16.98,18.69,18.668,58.332]
[1688256973538,55.0,18.689,18.668,58.332]
[1688256973717,62.79138627,18.689,18.668,58.332]
[1688256973917,62.79138627,18.689,18.671,22.654]
[1688256974139,324.5,18.688,18.669,22.656]
[1688256974438,62.79138627,18.687,18.669,22.656]
[1688256974639,387.29138627,18.687,18.662,58.352]
[1688256974844,387.29138627,18.687,18.667,22.659]
[1688256977441,387.29138627,18.687,18.665,22.661]
[1688256977645,445.64338627,18.687,18.665,22.661]
[1688256979432,445.64338627,18.687,18.665,22.662]
[1688256980044,445.64338627,18.687,18.66,58.357]
[1688256980351,445.64338627,18.687,18.663,22.664]
[1688256980529,16.9,18.68,18.654,58.357]
[1688256980730,16.9,18.68,18.654,22.675]
[1688256980943,324.5,18.678,18.654,22.675]
[1688256981140,324.5,18.676,18.654,22.675]
[1688256981641,55.0,18.675,18.654,22.675]
[1688256982042,379.5,18.676,18.654,22.675]
[1688256982234,978.4,18.676,18.654,22.675]
[1688256982430,978.4,18.676,18.652,22.677]
[1688256982431,16.98,18.67,18.652,22.677]
[1688256982632,16.98,18.67,18.645,58.403]
[1688256982633,55.0,18.669,18.645,58.403]
[1688256982835,55.0,18.669,18.64,123.504]
[1688256982836,55.0,18.669,18.648,22.682]
[1688256983051,55.0,18.669,18.648,81.079]
[1688256983249,55.0,18.669,18.648,22.682]
[1688256984156,20.0,18.675,18.648,22.682]
[1688256984157,98.5513,18.677,18.648,22.682]
[1688256984344,98.5513,18.677,18.658,22.671]
[1688256984650,156.9483,18.677,18.658,22.671]
[1688256984853,7.79138627,18.676,18.658,22.671]
[1688256985233,324.5,18.675,18.653,22.676]
[1688256985443,16.98,18.67,18.653,22.676]
[1688256985651,55.0,18.669,18.651,22.678]
[1688256985837,62.79138627,18.669,18.652,22.678]
[1688256986759,62.79138627,18.669,18.65,22.679]
[1688256987052,387.29138627,18.669,18.648,22.682]
[1688256987352,379.5,18.669,18.648,22.682]
[1688256988541,379.5,18.669,18.641,110.49544563]
[1688256988849,379.5,18.669,18.642,20.0]
[1688256989051,379.5,18.669,18.642,42.689]
[1688256989551,16.98,18.66,18.64,22.692]
[1688256989944,55.0,18.659,18.64,22.692]
[1688256990140,413.73,18.67,18.641,20.0]
[1688256990334,413.73,18.67,18.641,78.417]
[1688256990533,413.73,18.67,18.645,22.685]
[1688256990748,16.9,18.66,18.64,22.693]
[1688256991752,55.0,18.659,18.64,22.693]
[1688256992151,97.615,18.658,18.64,22.693]
[1688256992347,55.0,18.657,18.635,58.438]
[1688256992549,55.0,18.657,18.639,22.693]
[1688256992746,97.615,18.656,18.639,22.693]
[1688256993248,58.438,18.66,18.64,17.04]
[1688256993452,97.615,18.668,18.646,22.685]
[1688256993757,97.615,18.668,18.652,22.677]
[1688256994051,58.407,18.668,18.652,22.677]
[1688256994253,58.407,18.668,18.641,55.0]
[1688256994461,97.3092,18.667,18.645,22.685]
[1688256995741,97.3092,18.667,18.65,17.04]
[1688256996255,97.3092,18.667,18.652,22.677]
[1688256997060,55.0,18.666,18.65,22.679]
[1688256997254,55.0,18.666,18.642,20.0]
[1688256997449,55.0,18.666,18.65,22.68]
[1688256997950,55.0,18.666,18.644,58.409]
[1688256998157,55.0,18.666,18.645,55.0]
[1688256998661,55.0,18.666,18.64,64.76780119]
[1688256998965,55.0,18.666,18.646,22.685]
[1688256999165,55.0,18.666,18.644,22.687]
[1688256999460,20.0,18.665,18.64,22.692]
[1688256999665,55.0,18.666,18.64,39.732]
[1688256999868,55.0,18.666,18.648,22.682]
[1688257000655,97.3092,18.667,18.648,81.079]
[1688257000961,97.3092,18.667,18.65,17.04]
[1688257001175,97.3092,18.667,18.654,22.675]
[1688257001664,97.3092,18.667,18.652,22.677]
[1688257001849,7.79138627,18.666,18.652,22.677]
[1688257002052,7.79138627,18.666,18.651,22.679]
[1688257002053,55.0,18.665,18.651,22.679]
[1688257002260,55.0,18.665,18.65,17.04]
[1688257002470,7.79138627,18.664,18.65,17.04]
[1688257002670,55.0,18.663,18.65,17.04]
[1688257002868,55.0,18.663,18.65,39.72]
[1688257003253,97.3092,18.667,18.65,39.72]
[1688257003472,7.79138627,18.665,18.65,39.72]
[1688257004059,321.7,18.684,18.651,75.0]
[1688257004259,98.5583,18.677,18.658,22.67]
[1688257004663,7.79138627,18.676,18.651,85.83719922]
[1688257004958,16.93,18.67,18.64,17.04]
[1688257005162,16.93,18.67,18.64,75.462]
[1688257005372,7.74597596,18.669,18.641,10.83719922]
[1688257005669,55.0,18.668,18.647,22.684]
[1688257005858,150.2482,18.668,18.647,22.684]
[1688257006054,7.74597596,18.667,18.647,22.684]
[1688257006366,55.0,18.666,18.647,22.684]
[1688257006751,718.5,18.676,18.65,17.04]
[1688257007071,62.74597596,18.672,18.657,22.672]
[1688257007868,384.44597596,18.672,18.65,17.04]
[1688257008373,384.44597596,18.672,18.647,22.684]
[1688257008568,16.93,18.67,18.647,22.684]
[1688257008777,321.7,18.668,18.647,22.684]
[1688257008980,376.7,18.667,18.647,22.684]
[1688257009162,384.44369638,18.667,18.647,22.684]
[1688257011958,384.44369638,18.667,18.645,22.686]
[1688257013160,384.44369638,18.667,18.643,22.688]
[1688257018381,7.74369638,18.667,18.643,33.52519922]
[1688257018676,7.74369638,18.667,18.644,10.83719922]
[1688257018877,7.74369638,18.667,18.648,22.683]
[1688257019366,7.74369638,18.667,18.646,22.685]
[1688257019577,321.7,18.665,18.646,22.685]
[1688257019870,321.7,18.663,18.646,22.685]
[1688257020177,62.74369638,18.662,18.644,22.687]
[1688257020371,62.74369638,18.662,18.645,22.686]
[1688257020766,55.0,18.662,18.645,22.686]
[1688257020972,55.0,18.663,18.645,22.686]
[1688257021688,27.00132298,18.669,18.645,22.686]
[1688257021689,16.98,18.68,18.654,22.675]
[1688257021871,97.6119,18.671,18.654,22.675]
[1688257022282,105.35559638,18.671,18.654,33.51219922]
[1688257022485,7.74369638,18.671,18.654,22.675]
[1688257022665,7.74369638,18.67,18.654,22.675]
[1688257023767,22.675,18.672,18.654,22.675]
[1688257023971,30.41050863,18.672,18.654,22.675]
[1688257024291,7.73550863,18.671,18.654,22.675]
[1688257024974,55.0,18.67,18.654,22.675]
[1688257025166,7.73550863,18.671,18.654,22.675]
[1688257025367,22.675,18.672,18.654,22.675]
[1688257025565,97.6119,18.678,18.66,22.668]
[1688257025792,7.73550863,18.677,18.66,22.668]
[1688257026485,7.73550863,18.677,18.659,22.669]
[1688257026677,7.73550863,18.677,18.652,10.83719922]
[1688257026879,7.73550863,18.677,18.653,55.0]
[1688257027382,7.73550863,18.677,18.652,10.83719922]
[1688257027586,7.73550863,18.677,18.659,22.669]
[1688257027776,97.6119,18.678,18.66,37.04]
[1688257027975,97.6119,18.678,18.665,22.662]
[1688257028766,7.73550863,18.682,18.665,22.662]
[1688257029384,55.0,18.681,18.665,22.662]
[1688257029576,7.73550863,18.682,18.665,22.662]
[1688257029889,7.73550863,18.682,18.665,33.49919922]
[1688257030095,91.4547,18.685,18.67,16.91]
[1688257030388,91.4547,18.685,18.674,22.651]
[1688257030602,17.02,18.7,18.674,22.651]
[1688257030899,90.7649,18.693,18.674,22.651]
[1688257031091,90.7649,18.693,18.672,164.737]
[1688257031092,98.50040863,18.693,18.672,22.653]
[1688257031282,20.0,18.692,18.672,22.653]
[1688257031670,7.73550863,18.691,18.672,22.653]
[1688257032503,55.0,18.69,18.672,22.653]
[1688257032687,55.0,18.69,18.663,10.83719922]
[1688257032688,55.0,18.69,18.663,58.349]
[1688257032894,55.0,18.69,18.653,22.677]
[1688257032895,321.7,18.687,18.653,22.677]
[1688257033196,321.7,18.687,18.65,17.04]
[1688257033197,17.04,18.68,18.65,17.04]
[1688257033487,17.04,18.68,18.648,45.359]
[1688257033488,16.98,18.67,18.648,45.359]
[1688257033690,375.82,18.678,18.642,164.997]
[1688257033691,375.82,18.678,18.642,58.415]
[1688257033871,7.73550863,18.669,18.642,58.415]
[1688257034078,55.0,18.668,18.647,22.684]
[1688257034283,151.395,18.668,18.647,22.684]
[1688257034476,7.73550863,18.667,18.641,58.419]
[1688257034683,55.0,18.666,18.642,20.0]
[1688257035210,7.73550863,18.665,18.642,20.0]
[1688257035493,55.0,18.664,18.646,22.685]
[1688257035887,7.73550863,18.663,18.646,22.685]
[1688257036194,55.0,18.662,18.646,22.685]
[1688257036578,55.0,18.662,18.647,55.0]
[1688257036883,55.0,18.662,18.651,22.679]
[1688257037905,55.0,18.662,18.643,58.412]
[1688257038191,55.0,18.662,18.642,20.0]
[1688257038192,7.73550863,18.661,18.646,22.684]
[1688257038395,55.0,18.66,18.646,22.684]
[1688257038695,95.8658,18.659,18.646,22.684]
[1688257038880,55.0,18.658,18.646,22.684]
[1688257040786,55.0,18.658,18.638,58.428]
[1688257040787,62.73550863,18.658,18.638,58.428]
[1688257040976,62.73550863,18.658,18.64,22.692]
[1688257041202,7.73550863,18.657,18.634,58.439]
[1688257041396,55.0,18.656,18.64,22.693]
[1688257042079,62.73550863,18.656,18.64,22.693]
[1688257042394,62.73550863,18.656,18.63,17.04]
[1688257042395,7.73550863,18.655,18.631,165.095]
[1688257042694,55.0,18.654,18.632,20.0]
[1688257042988,55.0,18.654,18.636,22.697]
[1688257043391,55.0,18.656,18.64,16.91]
[1688257043591,95.8658,18.659,18.644,22.687]
[1688257043891,7.73550863,18.664,18.644,22.687]
[1688257044081,7.73550863,18.664,18.65,22.68]
[1688257044898,7.73550863,18.664,18.648,22.683]
[1688257045196,55.0,18.663,18.646,22.685]
[1688257045577,7.73550863,18.662,18.644,22.688]
[1688257045779,55.0,18.661,18.643,22.689]
[1688257046188,7.73550863,18.66,18.643,22.689]
[1688257046395,17.04,18.68,18.643,22.689]
[1688257046595,7.73550863,18.667,18.65,17.04]
[1688257046780,7.73550863,18.667,18.653,22.676]
[1688257047097,7.73550863,18.667,18.643,10.83719922]
[1688257047300,7.73550863,18.667,18.647,22.683]
[1688257047503,30.41150863,18.667,18.647,22.683]
[1688257047699,55.0,18.666,18.647,22.683]
[1688257047897,22.676,18.667,18.65,17.04]
[1688257048079,396.8,18.676,18.655,22.674]
[1688257048285,7.73550863,18.671,18.655,22.674]
[1688257048579,90.4192,18.675,18.655,22.674]
[1688257048780,7.73550863,18.674,18.655,22.674]
[1688257049510,66.11550863,18.674,18.656,55.0]
[1688257049799,7.73550863,18.674,18.661,22.667]
[1688257050407,30.40250863,18.674,18.657,22.671]
[1688257050794,55.0,18.673,18.657,22.671]
[1688257051306,7.73550863,18.672,18.657,22.671]
[1688257051607,55.0,18.671,18.657,22.671]
[1688257051896,55.0,18.671,18.648,58.396]
[1688257052101,55.0,18.671,18.64,61.1770004]
[1688257052102,7.73550863,18.67,18.645,58.406]
[1688257052292,55.0,18.669,18.65,22.68]
[1688257052600,62.73550863,18.669,18.65,39.59]
[1688257052984,62.73550863,18.669,18.651,20.0]
[1688257053185,62.73550863,18.669,18.656,22.673]
[1688257053384,55.0,18.669,18.656,22.673]
[1688257053704,55.0,18.669,18.65,22.679]
[1688257054001,7.73550863,18.668,18.651,42.679]
[1688257054200,55.0,18.667,18.651,42.679]
[1688257054401,91.4795,18.666,18.651,42.679]
[1688257054595,55.0,18.665,18.651,42.679]
[1688257055102,62.73550863,18.665,18.649,22.681]
[1688257055400,7.73550863,18.664,18.643,58.412]
[1688257055603,55.0,18.663,18.643,58.412]
[1688257055999,7.73550863,18.662,18.646,22.684]
[1688257056305,55.0,18.661,18.646,81.087]
[1688257056499,55.0,18.663,18.646,22.684]
[1688257056705,55.0,18.664,18.646,22.684]
[1688257057002,7.73550863,18.663,18.646,22.684]
[1688257057307,55.0,18.662,18.646,22.684]
[1688257057809,7.73550863,18.661,18.646,22.684]
[1688257057988,55.0,18.66,18.646,22.684]
[1688257059107,62.73550863,18.66,18.637,22.696]
[1688257059312,7.73550863,18.659,18.632,58.446]
[1688257059612,55.0,18.658,18.637,22.696]
[1688257059907,7.73550863,18.657,18.637,22.696]
[1688257060109,55.0,18.656,18.637,22.696]
[1688257060491,7.73550863,18.655,18.637,22.696]
[1688257060694,55.0,18.654,18.637,22.696]
[1688257061011,7.73550863,18.653,18.637,22.696]
[1688257061214,55.0,18.652,18.637,22.696]
[1688257061806,55.0,18.653,18.637,22.696]
[1688257065094,55.0,18.653,18.635,22.698]
[1688257065297,7.73550863,18.652,18.633,22.7]
[1688257065515,55.0,18.651,18.63,16.91]
[1688257065703,55.0,18.651,18.632,22.701]
[1688257065908,7.73550863,18.65,18.632,22.701]
[1688257066108,55.0,18.649,18.632,22.701]
[1688257069429,62.73550863,18.649,18.632,22.701]
[1688257070109,7.73550863,18.648,18.632,22.701]
[1688257070321,55.0,18.647,18.632,22.701]
[1688257071208,94.151,18.646,18.632,22.701]
[1688257071408,55.0,18.645,18.632,22.701]
[1688257073116,55.0,18.645,18.63,16.91]
[1688257073311,55.0,18.645,18.63,22.704]
[1688257073532,62.73550863,18.645,18.628,22.706]
[1688257075622,7.73550863,18.644,18.623,22.712]
[1688257075813,55.0,18.643,18.623,22.712]
[1688257076120,55.0,18.643,18.619,22.718]
[1688257076121,20.0,18.642,18.619,22.718]
[1688257076326,27.73550863,18.642,18.619,22.718]
[1688257076528,55.0,18.641,18.619,22.718]
[1688257077008,24.66550863,18.64,18.619,22.718]
[1688257077209,55.0,18.639,18.619,22.718]
[1688257077624,7.73141831,18.638,18.619,22.718]
[1688257077926,55.0,18.637,18.619,22.718]
[1688257078430,100.61821831,18.636,18.619,22.718]
[1688257078723,55.0,18.635,18.617,22.72]
[1688257079227,55.0,18.635,18.615,22.722]
[1688257079228,7.73141831,18.634,18.615,22.722]
[1688257079421,55.0,18.633,18.615,22.722]
[1688257079922,7.73141831,18.632,18.615,22.722]
[1688257080121,55.0,18.631,18.615,22.722]
[1688257080314,55.0,18.631,18.614,22.724]
[1688257081828,110.0,18.631,18.614,22.724]
[1688257082019,117.73754886,18.631,18.614,22.724]
[1688257082329,7.73754886,18.63,18.614,22.724]
[1688257082510,55.0,18.629,18.614,22.724]
[1688257082833,62.73754886,18.629,18.614,22.724]
[1688257083024,384.43754886,18.629,18.605,106.794]
[1688257083326,384.43754886,18.629,18.609,22.73]
[1688257083327,7.74367099,18.628,18.609,22.73]
[1688257083533,7.74367099,18.628,18.597,106.84]
[1688257083534,376.7,18.627,18.597,106.84]
[1688257084036,7.74367099,18.626,18.603,22.737]
[1688257084228,55.0,18.625,18.603,22.737]
[1688257084526,99.0364,18.624,18.603,22.737]
[1688257084826,55.0,18.623,18.603,22.737]
[1688257085127,17.04,18.62,18.589,106.888]
[1688257085319,17.04,18.62,18.595,22.747]
[1688257085516,321.7,18.618,18.595,22.747]
[1688257085819,55.0,18.619,18.595,22.747]
[1688257085820,376.7,18.617,18.595,22.747]
[1688257086025,55.0,18.616,18.595,22.747]
[1688257086328,16.98,18.61,18.587,58.589]
[1688257086529,16.98,18.61,18.588,22.755]
[1688257086530,321.7,18.608,18.588,22.755]
[1688257086833,321.7,18.608,18.581,58.607]
[1688257087014,16.98,18.61,18.587,22.756]
[1688257087015,145.1486,18.607,18.587,22.756]
[1688257087209,55.0,18.607,18.587,22.756]
[1688257087817,16.93,18.6,18.58,58.609]
[1688257088017,55.0,18.599,18.57,20.04]
[1688257088328,98.1535,18.606,18.587,22.757]
[1688257088510,20.0,18.623,18.594,81.315]
[1688257088511,17.04,18.62,18.594,81.315]
[1688257088710,98.1535,18.619,18.594,81.315]
[1688257089232,321.7,18.617,18.594,22.748]
[1688257089417,17.04,18.61,18.594,22.748]
[1688257089621,17.04,18.61,18.58,17.04]
[1688257089622,17.04,18.61,18.584,58.596]
[1688257090226,376.7,18.609,18.583,58.598]
[1688257090426,17.04,18.6,18.58,22.766]
[1688257090636,321.7,18.598,18.58,22.766]
[1688257090827,321.7,18.598,18.574,58.629]
[1688257090828,99.8696,18.597,18.578,22.767]
[1688257091021,55.0,18.596,18.578,22.767]
[1688257092126,17.04,18.6,18.578,22.767]
[1688257092322,262.77050108,18.631,18.58,17.04]
[1688257092323,48.06817361,18.604,18.58,17.04]
[1688257092542,27.30151561,18.609,18.587,188.246]
[1688257092732,16.93,18.61,18.587,81.345]
[1688257093028,16.93,18.61,18.587,22.757]
[1688257093331,16.93,18.61,18.585,22.76]
[1688257093633,85.2,18.6,18.569,58.643]
[1688257093819,85.2,18.6,18.56,19.91]
[1688257093820,16.9,18.59,18.566,58.654]
[1688257094011,16.9,18.59,18.56,16.91]
[1688257094012,376.7,18.589,18.562,58.666]
[1688257094326,384.44367099,18.589,18.562,58.666]
[1688257094913,96.0781,18.588,18.556,71.16]
[1688257095127,55.0,18.587,18.569,22.779]
[1688257095725,85.52267099,18.587,18.569,22.779]
[1688257096033,7.74367099,18.586,18.569,22.779]
[1688257096331,55.0,18.585,18.569,22.779]
[1688257096634,7.74367099,18.584,18.569,22.779]
[1688257096828,55.0,18.583,18.569,22.779]
[1688257097024,22.779,18.587,18.569,22.779]
[1688257097231,98.9713,18.598,18.569,22.779]
[1688257097538,7.74367099,18.593,18.569,22.779]
[1688257098027,7.74367099,18.593,18.568,107.009]
[1688257098028,7.74367099,18.593,18.574,22.772]
[1688257098234,7.74367099,18.593,18.572,22.775]
[1688257098435,20.0,18.592,18.572,22.775]
[1688257098737,7.74367099,18.593,18.572,22.775]
[1688257098918,7.74367099,18.591,18.572,22.775]
[1688257100233,197.9426,18.598,18.573,55.0]
[1688257100437,7.74367099,18.597,18.58,22.765]
[1688257101038,7.74367099,18.597,18.574,58.629]
[1688257102034,55.0,18.596,18.574,58.629]
[1688257102233,7.74367099,18.597,18.574,58.629]
[1688257102541,98.9713,18.598,18.58,81.377]
[1688257102780,92.9578,18.608,18.58,58.611]
[1688257102781,7.74367099,18.603,18.58,58.611]
[1688257102919,7.74367099,18.603,18.57,17.21]
[1688257102920,7.74367099,18.597,18.582,22.762]
[1688257103332,7.74367099,18.597,18.577,58.62]
[1688257103530,417.5471,18.609,18.581,22.764]
[1688257103729,21.543213,18.597,18.581,22.764]
[1688257103920,21.543213,18.597,18.58,58.61]
[1688257103921,21.543213,18.597,18.587,22.756]
[1688257104131,7.60995586,18.606,18.587,22.756]
[1688257104325,7.60995586,18.606,18.593,22.75]
[1688257104721,66.19695586,18.606,18.584,58.598]
[1688257105135,66.19695586,18.606,18.587,22.756]
[1688257105525,55.0,18.605,18.587,22.756]
[1688257105924,7.60995586,18.604,18.587,22.756]
[1688257106142,55.0,18.603,18.587,22.756]
[1688257107035,62.60995586,18.603,18.57,17.21]
[1688257107239,27.60995586,18.602,18.57,17.21]
[1688257107426,27.60995586,18.602,18.576,58.623]
[1688257107427,55.0,18.601,18.576,58.623]
[1688257107626,376.7,18.601,18.579,22.766]
[1688257107947,7.60995586,18.6,18.579,22.766]
[1688257108239,55.0,18.599,18.579,22.766]
[1688257108637,7.60995586,18.598,18.579,22.766]
[1688257108823,55.0,18.597,18.579,22.766]
[1688257109738,7.60995586,18.598,18.579,22.766]
[1688257110040,58.587,18.606,18.581,3.0]
[1688257110230,58.587,18.606,18.58,252.67]
[1688257110231,7.56579328,18.614,18.59,17.21]
[1688257110432,7.56579328,18.614,18.597,22.745]
[1688257110849,66.13279328,18.614,18.595,22.746]
[1688257111147,66.13279328,18.614,18.591,75.0]
[1688257111441,90.2403,18.613,18.591,75.0]
[1688257111744,329.26579328,18.612,18.591,22.752]
[1688257111930,20.0,18.611,18.591,22.752]
[1688257112137,338.97,18.61,18.57,20.21]
[1688257112333,321.7,18.608,18.58,22.765]
[1688257112547,321.7,18.606,18.58,22.765]
[1688257112837,20.0,18.605,18.58,22.765]
[1688257113037,376.7,18.604,18.57,17.21]
[1688257113235,321.7,18.598,18.568,58.648]
[1688257113439,17.17,18.59,18.563,22.786]
[1688257113841,17.17,18.59,18.563,22.787]
[1688257114026,321.7,18.588,18.563,22.787]
[1688257114336,321.7,18.586,18.558,22.792]
[1688257114546,321.7,18.586,18.55,107.111]
[1688257114547,17.27,18.58,18.55,58.704]
[1688257114751,17.27,18.58,18.526,204.46175397]
[1688257114752,17.27,18.58,18.554,22.797]
[1688257114933,384.26579328,18.579,18.554,22.797]
[1688257115131,384.26579328,18.579,18.552,22.8]
[1688257115132,20.0,18.578,18.552,22.8]
[1688257115332,20.0,18.578,18.55,22.802]
[1688257115534,17.27,18.57,18.548,22.805]
[1688257115733,17.27,18.57,18.541,58.732]
[1688257115928,384.26579328,18.569,18.541,58.732]
[1688257116134,97.6369,18.575,18.55,17.12]
[1688257116331,17.27,18.59,18.557,22.794]
[1688257116633,117.6369,18.589,18.557,22.794]
[1688257116840,125.15893926,18.589,18.557,22.794]
[1688257117139,125.15893926,18.589,18.54,20.21]
[1688257117140,17.27,18.58,18.548,58.71]
[1688257117448,17.27,18.58,18.542,10.83719922]
[1688257117449,27.52203926,18.579,18.542,10.83719922]
[1688257117648,17.27,18.57,18.54,107.171]
[1688257117949,321.7,18.578,18.547,22.806]
[1688257118149,146.152,18.577,18.547,22.806]
[1688257118457,420.37403926,18.577,18.548,20.0]
[1688257118758,91.152,18.577,18.556,188.559]
[1688257118933,91.152,18.577,18.557,55.0]
[1688257119253,91.152,18.577,18.563,22.787]
[1688257119545,17.27,18.6,18.564,55.0]
[1688257119749,412.852,18.598,18.574,188.378]
[1688257119934,412.852,18.598,18.57,17.27]
[1688257119935,91.152,18.598,18.581,81.369]
[1688257120135,91.152,18.598,18.581,22.764]
[1688257120437,98.65664293,18.598,18.581,22.764]
[1688257120644,7.50464293,18.597,18.574,58.629]
[1688257120846,7.50464293,18.597,18.57,17.27]
[1688257120847,7.50464293,18.597,18.58,22.765]
[1688257121146,91.152,18.609,18.589,22.754]
[1688257121337,1598.3,18.627,18.588,58.585]
[1688257121338,7.50464293,18.608,18.595,22.747]
[1688257121656,120.20422642,18.637,18.595,22.747]
[1688257121657,58.585,18.614,18.6,17.21]
[1688257121831,58.585,18.614,18.604,188.066]
[1688257122034,21.67439845,18.64,18.601,20.0]
[1688257122035,93.9512,18.639,18.615,81.223]
[1688257122335,261.18855741,18.657,18.615,81.223]
[1688257122336,3.0,18.652,18.62,17.21]
[1688257122563,30.07543671,18.652,18.62,17.21]
[1688257122744,321.7,18.65,18.62,17.21]
[1688257122950,321.7,18.65,18.605,106.24820565]
[1688257122951,321.7,18.648,18.614,10.83719922]
[1688257123134,321.7,18.648,18.606,58.528]
[1688257123332,17.27,18.64,18.61,22.729]
[1688257123834,20.0,18.639,18.619,22.718]
[1688257124260,93.9512,18.649,18.62,72.27]
[1688257124440,93.9512,18.649,18.627,22.708]
[1688257124635,93.9512,18.649,18.611,20.0]
[1688257124636,415.6512,18.649,18.612,106.756]
[1688257124856,415.6512,18.649,18.611,20.0]
[1688257125039,17.27,18.64,18.602,106.811]
[1688257125239,17.27,18.64,18.603,0.06656271]
[1688257125434,17.27,18.64,18.609,22.729]
[1688257125652,17.27,18.64,18.603,0.06656271]
[1688257125653,17.27,18.63,18.603,0.06656271]
[1688257125853,17.27,18.62,18.603,0.06656271]
[1688257126054,17.27,18.62,18.584,22.76]
[1688257126238,20.0,18.619,18.584,22.76]
[1688257126435,55.0,18.618,18.584,22.76]
[1688257126654,55.0,18.618,18.59,17.27]
[1688257126844,20.0,18.617,18.59,17.27]
[1688257127039,20.0,18.617,18.56,123.89]